fUST/lending_fUST_20241008
["ID","MTS","AMOUNT","RATE_DAILY","PERIOD"]
[340028429,1728334349302,-198.89093266,0.00054,120]
[340028430,1728334349311,-500.0,0.0005437,30]
[340028431,1728334349321,-400.0,0.00054376,2]
[340028432,1728334349331,-1000.0,0.00054384,30]
[340028433,1728334349341,-500.0,0.00054498,60]
[340028434,1728334349351,-500.0,0.00054501,60]
[340028435,1728334349361,-500.0,0.00054504,60]
[340028436,1728334349371,-500.0,0.00054506,60]
[340028437,1728334349380,-500.0,0.00054507,60]
[340028438,1728334349389,-500.0,0.00054508,60]
[340028439,1728334349398,-500.0,0.00054512,60]
[340028440,1728334349408,-500.0,0.00054513,60]
[340028441,1728334349417,-500.0,0.00054515,60]
[340028442,1728334349426,-500.0,0.00054518,60]
[340028443,1728334349436,-500.0,0.0005452,60]
[340028444,1728334349446,-500.0,0.00054527,60]
[340028445,1728334349455,-500.0,0.00054537,60]
[340028446,1728334349465,-500.0,0.0005454,60]
[340028447,1728334349474,-500.0,0.00054542,60]
[340028448,1728334349483,-916.68459158,0.00054544,60]
[340028449,1728334349495,-500.0,0.0005455,60]
[340028450,1728334349504,-500.0,0.00054551,60]
[340028451,1728334349514,-500.0,0.00054558,60]
[340028452,1728334349523,-500.0,0.00054565,60]
[340028453,1728334349533,-500.0,0.00054568,60]
[340028454,1728334349543,-500.0,0.00054569,60]
[340028455,1728334349553,-809.7893918,0.00054575,60]
[340028456,1728334349563,-500.0,0.00054595,60]
[340028457,1728334349573,-500.0,0.00054598,60]
[340028458,1728334349582,-500.0,0.00054599,60]
[340028459,1728334349592,-500.0,0.00054604,60]
[340028460,1728334349602,-500.0,0.00054609,60]
[340028461,1728334349611,-500.0,0.00054617,60]
[340028462,1728334349621,-500.0,0.00054621,60]
[340028463,1728334349631,-500.0,0.0005463,60]
[340028464,1728334349642,-781.0,0.00054794,120]
[340028465,1728334349652,-1000.0,0.00054794,120]
[340028466,1728334349662,-1000.0,0.00054794,120]
[340028467,1728334349671,-1000.0,0.00054794,120]
[340028468,1728334349681,-1000.0,0.00054794,120]
[340028469,1728334349691,-1012.0,0.00054794,120]
[340028470,1728334349700,-500.0,0.00054794,120]
[340028471,1728334349711,-500.0,0.00054794,120]
[340028472,1728334349720,-500.0,0.00054794,120]
[340028473,1728334349729,-500.0,0.00054794,120]
[340028474,1728334349739,-500.0,0.00054794,120]
[340028475,1728334349750,-500.0,0.00054794,120]
[340028476,1728334349760,-500.0,0.00054794,120]
[340028477,1728334349769,-500.0,0.00054794,120]
[340028478,1728334349779,-500.0,0.00054794,120]
[340028479,1728334349789,-500.0,0.00054794,120]
[340028480,1728334349798,-532.2823663,0.00054794,120]
[340028481,1728334349808,-1837.2,0.00054794,120]
[340028482,1728334349817,-500.0,0.00054794,120]
[340028483,1728334349827,-500.0,0.00054794,120]
[340028484,1728334349836,-500.0,0.00054794,120]
[340028485,1728334349846,-500.0,0.00054794,120]
[340028486,1728334349856,-500.0,0.00054794,120]
[340028487,1728334349865,-500.0,0.00054794,120]
[340028488,1728334349875,-500.0,0.00054794,120]
[340028489,1728334349885,-341.12310617,0.00054794,120]
[340028490,1728334349895,-500.0,0.00054795,5]
[340028491,1728334349904,-1000.0,0.00054795,10]
[340028492,1728334349914,-2000.0,0.00055,55]
[340028493,1728334349923,-1000.0,0.00055,120]
[340028494,1728334349933,-2000.0,0.00055,120]
[340028495,1728334349942,-521.03894645,0.00055,120]
[340028496,1728334349952,-4998.21847568,0.00055,120]
[340028497,1728334349963,-995970.5051,0.0005544,30]
[340028498,1728334349972,-500.0,0.00055479,120]
[340028499,1728334349982,-207.855109,0.00055575,120]
[340028500,1728334349993,-151.0,0.00055644,120]
[340028501,1728334350003,-1837.2,0.00055753,120]
[340028502,1728334350013,-150.0,0.00056,120]
[340028503,1728334350023,-3453.78,0.00056,30]
[340028504,1728334350033,-103903.74,0.00056,30]
[340028505,1728334350042,-159.534834,0.0005639,2]
[340028506,1728334350052,-1837.2,0.00056712,120]
[340028507,1728334350062,-150.0,0.00057,120]
[340028508,1728334350071,-154.84576785,0.00057028,120]
[340028509,1728334350081,-500.0,0.00057088,120]
[340028510,1728334350091,-2000.0,0.000575,120]
[340028511,1728334350101,-1000.0,0.000575,2]
[340028512,1728334350111,-500.0,0.00057534,120]
[340028513,1728334350121,-1837.34451553,0.00057671,120]
[340028514,1728334350133,-151.0,0.00057781,120]
[340028515,1728334350142,-200.0,0.00058,120]
[340028516,1728334350152,-725.098555,0.00058,60]
[340028517,1728334350162,-363.11,0.00058,30]
[340028518,1728334350173,-1000.0,0.00059,120]
[340028519,1728334350183,-153.68125925,0.00059031,116]
[340028520,1728334350193,-400.0,0.00059236,2]
[340028521,1728334350205,-403.36,0.00059252,30]
[340028522,1728334350215,-500.0,0.00059589,120]
[340028523,1728334350226,-730.92521641,0.000599,120]
[340028524,1728334350236,-151.0,0.00059918,120]
[340028525,1728334350249,-245.81256332,0.00059943,120]
[340028526,1728334350263,-2000.0,0.0006,60]
[340028527,1728334350273,-900.0,0.0006,120]
[340028528,1728334350282,-2750.0,0.0006,120]
[340028529,1728334350292,-1866.13866584,0.0006,120]
[340028530,1728334350302,-691.54411008,0.0006,12]
[340028531,1728334350311,-150.0,0.0006,120]
[340028532,1728334350322,-1000.0,0.0006,120]
[340028533,1728334350331,-20400.0,0.0006,120]
[340028534,1728334350340,-4998.21847568,0.0006,120]
[340028535,1728334350351,-5000.0,0.0006,60]
[340028536,1728334350361,-301349.94,0.0006,30]
[340028537,1728334350371,-150.0,0.00061,120]
[340028538,1728334350381,-168.0,0.00061619,120]
[340028539,1728334350391,-500.0,0.00061643,120]
[340028540,1728334350402,-1000.0,0.00061649,30]
[340028541,1728334350412,-1000.0,0.00061649,30]
[340028542,1728334350422,-1000.0,0.00061649,30]
[340028543,1728334350432,-154.84576785,0.00061738,120]
[340028544,1728334350442,-207.855109,0.00061837,120]
[340028545,1728334350452,-200.0,0.00062,120]
[340028546,1728334350462,-150.0,0.00062,120]
[340028547,1728334350688,-151.0,0.00062055,120]
[340028548,1728334350700,-150.0,0.00063,120]
[340028549,1728334350710,-500.0,0.00063698,120]
[340028550,1728334350720,-200.0,0.00064,120]
[340028551,1728334350730,-400.0,0.00064095,2]
[340028552,1728334350741,-151.0,0.00064192,120]
[340028553,1728334350753,-1367.03403219,0.000644,120]
[340028554,1728334350763,-1000.0,0.00065,120]
[340028555,1728334350774,-10000.0,0.00065,120]
[340028556,1728334350784,-4998.21847568,0.00065,120]
[340028557,1728334350793,-47756.07,0.00065,30]
[340028558,1728334350802,-500.0,0.00065753,120]
[340028559,1728334350811,-151.0,0.00066329,120]
[340028560,1728334350821,-154.84576785,0.00066448,120]
[340028561,1728334350832,-3453.78,0.00067,30]
[340028562,1728334350842,-103903.74,0.00067,30]
[340028563,1728334350851,-500.0,0.00067808,120]
[340028564,1728334350862,-207.855109,0.000681,120]
[340028565,1728334350872,-151.0,0.00068466,120]
[340028566,1728334350882,-150.0,0.00068493,120]
[340028567,1728334350892,-400.0,0.00068955,2]
[340028568,1728334350902,-1000.0,0.00069,120]
[340028569,1728334350911,-363.11,0.00069,30]
[340028570,1728334350922,-3000.0,0.00069,120]
[340028571,1728334350931,-3000.0,0.0006901,120]
[340028572,1728334350941,-3000.0,0.0006902,120]
[340028573,1728334350950,-3000.0,0.0006903,120]
[340028574,1728334350960,-5603.646905,0.0006904,120]
[340028575,1728334350970,-592.94000573,0.00069863,120]
[340028576,1728334350980,-633.41808315,0.0007,120]
[340028577,1728334350990,-10000.0,0.0007,120]
[340028578,1728334351000,-1000.0,0.0007,120]
[340028579,1728334351010,-4998.21847568,0.0007,120]
[340028580,1728334351019,-151.0,0.0007,120]
[340028581,1728334351030,-360.04,0.00070136,30]
[340028582,1728334351041,-151.0,0.00070603,120]
[340028583,1728334351051,-151.0,0.00070712,120]
[340028584,1728334351061,-154.84576785,0.00071158,120]
[340028585,1728334351078,-153.0,0.00071239,120]
[340028586,1728334351092,-153.0,0.00071239,120]
[340028587,1728334351103,-153.0,0.00071239,120]
[340028588,1728334351113,-153.0,0.00071239,120]
[340028589,1728334351124,-153.0,0.00071239,120]
[340028590,1728334351136,-153.0,0.00071242,120]
[340028591,1728334351147,-153.0,0.00071242,120]
[340028592,1728334351158,-153.0,0.00071242,120]
[340028593,1728334351170,-153.0,0.00071242,120]
[340028594,1728334351181,-153.0,0.00071242,120]
[340028595,1728334351192,-153.0,0.00071276,120]
[340028596,1728334351204,-153.0,0.00071276,120]
[340028597,1728334351215,-153.0,0.00071276,120]
[340028598,1728334351227,-153.0,0.00071276,120]
[340028599,1728334351238,-153.0,0.00071276,120]
[340028600,1728334351253,-153.0,0.00071282,120]
[340028601,1728334351263,-153.0,0.00071282,120]
[340028602,1728334351273,-153.0,0.00071282,120]
[340028603,1728334351283,-153.0,0.00071282,120]
[340028604,1728334351293,-153.0,0.00071282,120]
[340028605,1728334351303,-153.0,0.00071319,120]
[340028606,1728334351313,-153.0,0.00071319,120]
[340028607,1728334351322,-153.0,0.00071319,120]
[340028608,1728334351332,-153.0,0.00071319,120]
[340028609,1728334351342,-153.0,0.00071319,120]
[340028610,1728334351352,-153.0,0.00071323,120]
[340028611,1728334351362,-153.0,0.00071323,120]
[340028612,1728334351372,-153.0,0.00071323,120]
[340028613,1728334351381,-153.0,0.00071323,120]
[340028614,1728334351391,-153.0,0.00071323,120]
[340028615,1728334351401,-153.0,0.00071359,120]
[340028616,1728334351411,-153.0,0.00071359,120]
[340028617,1728334351421,-153.0,0.00071359,120]
[340028618,1728334351431,-153.0,0.00071359,120]
[340028619,1728334351441,-153.0,0.00071359,120]
[340028620,1728334351451,-153.0,0.00071363,120]
[340028621,1728334351460,-153.0,0.00071363,120]
[340028622,1728334351471,-153.0,0.00071363,120]
[340028623,1728334351480,-153.0,0.00071363,120]
[340028624,1728334351491,-153.0,0.00071363,120]
[340028625,1728334351512,-151.0,0.00071425,120]
[340028626,1728334351522,-159.534834,0.00071641,120]
[340028627,1728334351532,-1000.0,0.00071977,120]
[340028628,1728334351544,-999.99999999,0.00072,120]
[340028629,1728334351554,-151.0,0.00072137,120]
[340028630,1728334351564,-151.0,0.0007274,120]
[340028631,1728334351574,-151.0,0.00072849,120]
[340028632,1728334351585,-2174.78373502,0.00073,120]
[340028633,1728334351596,-151.0,0.00073562,120]
[340028634,1728334351608,-400.0,0.00073814,2]
[340028635,1728334351618,-153.68125925,0.00074031,120]
[340028636,1728334351628,-151.0,0.00074274,120]
[340028637,1728334351638,-207.855109,0.00074362,120]
[340028638,1728334351650,-151.0,0.00074877,120]
[340028639,1728334351660,-151.0,0.00074986,120]
[340028640,1728334351671,-4998.21847568,0.00075,120]
[340028641,1728334351681,-1000.0,0.00075,2]
[340028642,1728334351695,-5029.0,0.00075,120]
[340028643,1728334351706,-260.0,0.00075,60]
[340028644,1728334351716,-6915.12025093,0.00075444,120]
[340028645,1728334351726,-151.0,0.00075699,120]
[340028646,1728334351737,-154.84576785,0.00075868,120]
[340028647,1728334351748,-151.0,0.00076411,120]
[340028648,1728334351758,-151.0,0.00077014,120]
[340028649,1728334351768,-151.0,0.00077123,120]
[340028650,1728334351778,-151.0,0.00077836,120]
[340028651,1728334351789,-151.0,0.00078548,120]
[340028652,1728334351799,-400.0,0.00078673,2]
[340028653,1728334351809,-182932.04417677,0.00079,30]
[340028654,1728334352369,-500.0,0.00038904,120]
[340028655,1728334352382,-500.0,0.00039178,120]
[340028656,1728334352394,-500.0,0.00039178,120]
[340028657,1728334352406,-700.93,0.00039452,120]
[340028658,1728334352418,-204.36759885,0.00039452,120]
[340028659,1728334352589,-1028.95,0.00031655,120]
[340028660,1728334352603,-2007.72495484,0.00031655,120]
[340028661,1728334352881,-307.307874,0.00031299,7]
[340028662,1728334352891,-307.307874,0.000313,7]
[340028663,1728334352901,-307.307874,0.000313,7]
[340028664,1728334352911,-307.307874,0.000313,7]
[340028665,1728334352921,-5514.5999879,0.00031655,120]
[340028666,1728334352933,-1920.85579954,0.00031655,120]
[340028667,1728334352943,-322.0,0.00031745,3]
[340028668,1728334352952,-19.19672016,0.00031755,7]
[340028673,1728335263817,-161.377662,0.00018,2]
[340028674,1728335263841,-161.377662,0.00026499,2]
[340028675,1728335263870,-150.0,0.00031867,2]
[340028676,1728335263891,-525.945,0.00031867,2]
[340028677,1728335263911,-1218.0,0.00031867,2]
[340028678,1728335263933,-9016.954,0.00031867,2]
[340028679,1728335263955,-153.68125924,0.00032997,2]
[340028680,1728335263978,-420.46888964,0.00033225,2]
[340028748,1728335432573,-308.43749623,0.00033224,2]
[340028828,1728335440705,-3166.13404886,0.00033224,2]
[340028836,1728335443682,-3195.55715088,0.00033224,2]
[340028837,1728335443741,-575.14564859,0.00033224,2]
[340028838,1728335443754,-6283.15107741,0.00033224,2]
[340028845,1728335446678,-6540.15869314,0.00033224,2]
[340028846,1728335446690,-1525.24628039,0.00033224,2]
[340028857,1728336569226,-300.0,0.00012499,2]
[340028858,1728336569252,-300.0,0.00012499,2]
[340028859,1728336569278,-10113.21867658,0.000125,2]
[340028860,1728336569303,-420.0,0.00013714,2]
[340028861,1728336569327,-420.0,0.00013749,2]
[340028862,1728336569349,-200.0,0.00015,7]
[340028863,1728336569373,-300.0,0.00015048,2]
[340028864,1728336569397,-307.0,0.00015124,2]
[340028866,1728336569419,-160.563267,0.00018,2]
[340028868,1728336569440,-2381.89866269,0.0002,5]
[340028869,1728336572169,-46.08073042,0.0002,5]
[340028891,1728336631731,-160.563267,0.0002461,2]
[340028892,1728336631744,-159.257698,0.00025769,2]
[340028893,1728336631755,-159.257698,0.0002644,2]
[340028894,1728336631766,-159.534834,0.00026839,2]
[340028895,1728336631775,-2045.85293041,0.00026995,2]
[340028904,1728336637924,-3257.84425959,0.00026995,2]
[340028905,1728336637937,-12883.81689689,0.00026996,7]
[340028906,1728336637950,-21164.29010324,0.00026996,7]
[340028907,1728336637960,-237.7998696,0.00026996,14]
[340028908,1728336637971,-2643.0637175,0.00026997,2]
[340028909,1728336637981,-24900.0,0.00026997,2]
[340028910,1728336637993,-159.257698,0.00027111,2]
[340028911,1728336638006,-173.789,0.00029608,23]
[340028912,1728336638016,-160.563267,0.00031221,2]
[340028913,1728336638025,-525.0,0.00032792,2]
[340028914,1728336638034,-1218.0,0.00032792,2]
[340028915,1728336638044,-150.0,0.00032792,2]
[340028916,1728336638053,-150.0,0.00033002,2]
[340028917,1728336638063,-153.68125924,0.00033882,6]
[340028918,1728336638072,-150.0,0.00034396,14]
[340028919,1728336638082,-150.0,0.00034396,14]
[340028920,1728336638093,-200.0,0.00034396,14]
[340028921,1728336638105,-160.563267,0.00037831,2]
[340028922,1728336638121,-500.0,0.00038356,120]
[340028923,1728336638130,-500.0,0.00038356,120]
[340028924,1728336638140,-500.0,0.00038356,120]
[340028925,1728336638151,-500.0,0.00038356,120]
[340028926,1728336638162,-500.0,0.00038356,120]
[340028927,1728336638172,-500.0,0.00038356,120]
[340028928,1728336638183,-500.0,0.00038356,120]
[340028929,1728336638194,-500.0,0.00038356,120]
[340028930,1728336638206,-219.31535931,0.00038356,120]
[340028931,1728336638216,-500.0,0.00038356,120]
[340028932,1728336638227,-500.0,0.00038356,120]
[340028933,1728336638242,-500.0,0.00038356,120]
[340028934,1728336638253,-151.0,0.00038356,120]
[340028935,1728336638440,-500.0,0.00038356,120]
[340028936,1728336638450,-500.0,0.00038356,120]
[340028937,1728336638462,-500.0,0.00038356,120]
[340028938,1728336638472,-500.0,0.00038356,120]
[340028939,1728336638483,-500.0,0.00038356,120]
[340028940,1728336638495,-557.22639201,0.00038356,120]
[340028941,1728336638504,-7944.54,0.00038356,18]
[340028942,1728336638515,-1068.25,0.00038356,120]
[340028943,1728336638526,-554.9,0.00038356,120]
[340028944,1728336638538,-500.0,0.00038356,120]
[340028945,1728336638548,-500.0,0.00038356,120]
[340028946,1728336638559,-500.0,0.00038356,120]
[340028947,1728336638570,-500.0,0.00038356,120]
[340028948,1728336638582,-500.0,0.00038528,60]
[340028949,1728336638592,-184.39155832,0.00038528,120]
[340028950,1728336638604,-500.0,0.00038528,120]
[340028951,1728336638616,-500.0,0.00038528,120]
[340028952,1728336638627,-262.13181423,0.00038528,120]
[340028953,1728336638639,-5249.74,0.0003856,10]
[340028954,1728336638651,-2752.97,0.0003857,10]
[340028955,1728336638663,-13243.3249144,0.0003858,5]
[340028956,1728336638676,-500.0,0.0003863,120]
[340028957,1728336638687,-500.0,0.0003863,120]
[340028958,1728336638698,-500.0,0.0003863,120]
[340028959,1728336638709,-312.15283651,0.0003863,120]
[340028960,1728336638720,-500.0,0.0003863,120]
[340028961,1728336638731,-500.0,0.0003863,120]
[340028962,1728336638740,-500.0,0.0003863,120]
[340028963,1728336638750,-500.0,0.0003863,120]
[340028964,1728336638759,-500.0,0.0003863,120]
[340028965,1728336638768,-500.0,0.0003863,120]
[340028966,1728336638778,-500.0,0.0003863,120]
[340028967,1728336638788,-500.0,0.0003863,120]
[340028968,1728336638798,-500.0,0.0003863,120]
[340028969,1728336638806,-500.0,0.0003863,120]
[340028970,1728336638815,-500.0,0.0003863,120]
[340028971,1728336638825,-500.0,0.0003863,120]
[340028972,1728336638834,-5922.99801395,0.0003863,18]
[340028973,1728336638846,-2021.54198605,0.0003863,18]
[340028974,1728336638855,-1068.25,0.0003863,120]
[340028975,1728336638865,-554.9,0.0003863,120]
[340028976,1728336638874,-513.99100595,0.0003863,120]
[340028977,1728336638883,-500.0,0.0003863,120]
[340028978,1728336638892,-500.0,0.0003863,120]
[340028979,1728336638902,-510.706212,0.0003863,120]
[340028980,1728336638911,-500.0,0.00038802,60]
[340028981,1728336638920,-500.0,0.00038802,120]
[340028982,1728336638930,-500.0,0.00038802,120]
[340028983,1728336638940,-500.0,0.00038904,120]
[340028984,1728336638949,-500.0,0.00038904,120]
[340028985,1728336638959,-500.0,0.00038904,120]
[340028986,1728336638967,-500.0,0.00038904,120]
[340028987,1728336638977,-500.0,0.00038904,120]
[340028988,1728336638987,-562.76457581,0.00038904,120]
[340028989,1728336638997,-500.0,0.00038904,120]
[340028990,1728336639006,-275.53482896,0.00038904,120]
[340028991,1728336639015,-500.0,0.00038904,120]
[340028992,1728336639024,-500.0,0.00038904,120]
[340028993,1728336639033,-500.0,0.00038904,120]
[340028994,1728336639042,-500.0,0.00038904,120]
[340028995,1728336639051,-500.0,0.00038904,120]
[340028996,1728336639060,-500.0,0.00038904,120]
[340028997,1728336639069,-539.37628348,0.00038904,120]
[340028998,1728336639078,-7944.54,0.00038904,18]
[340028999,1728336639087,-1068.25,0.00038904,120]
[340029000,1728336639096,-554.9,0.00038904,120]
[340029001,1728336639106,-198.158834,0.00038904,120]
[340029002,1728336639118,-378.854694,0.00038904,120]
[340029003,1728336639127,-150.112233,0.00039,6]
[340029004,1728336639136,-150.112233,0.00039,7]
[340029005,1728336639145,-500.0,0.00039076,120]
[340029006,1728336639155,-500.0,0.00039076,120]
[340029007,1728336639163,-13243.3249144,0.00039168,5]
[340029008,1728336639173,-500.0,0.00039178,120]
[340029009,1728336639182,-500.0,0.00039178,120]
[340029010,1728336639192,-500.0,0.00039178,120]
[340029011,1728336639203,-500.0,0.00039178,120]
[340029012,1728336639214,-500.0,0.00039178,120]
[340029013,1728336639225,-500.0,0.00039178,120]
[340029014,1728336639235,-500.0,0.00039178,120]
[340029015,1728336639246,-500.70458815,0.00039178,120]
[340029016,1728336639256,-500.0,0.00039178,120]
[340029017,1728336639266,-500.0,0.00039178,120]
[340029018,1728336639277,-500.0,0.00039178,120]
[340029019,1728336639286,-500.0,0.00039178,120]
[340029020,1728336639295,-7944.54,0.00039178,18]
[340029021,1728336639306,-1068.25,0.00039178,120]
[340029022,1728336639320,-554.9,0.00039178,120]
[340029023,1728336639330,-500.0,0.0003935,120]
[340029024,1728336639341,-500.0,0.0003935,120]
[340029025,1728336639351,-500.0,0.00039452,120]
[340029026,1728336639363,-505.24064691,0.00039452,120]
[340029027,1728336639375,-500.0,0.00039452,120]
[340029028,1728336639386,-179.05222757,0.00039452,120]
[340029029,1728336639398,-500.0,0.00039452,120]
[340029030,1728336639412,-232.90112145,0.00039452,120]
[340029031,1728336639423,-500.0,0.00039452,120]
[340029032,1728336639434,-500.0,0.00039452,120]
[340029033,1728336639444,-500.0,0.00039452,120]
[340029034,1728336639456,-500.0,0.00039452,120]
[340029035,1728336639465,-500.0,0.00039452,120]
[340029036,1728336639476,-7944.54,0.00039452,18]
[340029037,1728336639485,-1068.25,0.00039452,120]
[340029038,1728336639498,-554.9,0.00039452,120]
[340029039,1728336639507,-200.0,0.00039624,120]
[340029040,1728336639516,-500.0,0.00039624,120]
[340029041,1728336639526,-500.0,0.00039726,120]
[340029042,1728336639535,-176.17377677,0.00039726,120]
[340029043,1728336639545,-500.0,0.00039726,120]
[340029044,1728336639553,-500.0,0.00039726,120]
[340029045,1728336639563,-320.51277529,0.00039726,120]
[340029046,1728336639572,-210.71872063,0.00039726,120]
[340029047,1728336639582,-500.0,0.00039726,120]
[340029048,1728336639594,-500.0,0.00039726,120]
[340029049,1728336639604,-980.30373258,0.00039726,18]
[340029050,1728336639629,-449.46135705,0.00033124,2]
[340029054,1728336642896,-5018.9254973,0.00033124,2]
[340029055,1728336642906,-500.0,0.00038356,120]
[340029057,1728336642918,-150.1016696,0.0003863,120]
[340029058,1728336642930,-1003.13445857,0.00039726,18]
[340029260,1728337640156,-421.73353234,0.000179,2]
[340029261,1728337640181,-175.357725,0.00018,2]
[340029262,1728337640206,-191.75240557,0.00024162,4]
[340029263,1728337640230,-175.357725,0.00024262,2]
[340029264,1728337640256,-490.30176439,0.00029569,2]
[340029265,1728337745129,-169.404406,0.00018,2]
[340029266,1728337745152,-169.404406,0.00024262,2]
[340029687,1728337831995,-2283.69517651,0.00029569,2]
[340029690,1728337832007,-169.404406,0.00030525,2]
[340029692,1728337832018,-179.78929575,0.00031272,2]
[340029694,1728337832031,-1.9640896,0.00031272,2]
[340029696,1728337832041,-300.0,0.0003137,2]
[340029698,1728337832050,-400.0,0.0003137,2]
[340029701,1728337832062,-10581.61521,0.00031371,2]
[340029703,1728337832073,-24900.0,0.00031371,2]
[340029705,1728337832086,-557.5547249,0.00031372,30]
[340029708,1728337832096,-240.8021032,0.00031438,2]
[340029710,1728337832106,-159.30885,0.00031661,2]
[340029712,1728337832116,-159.30885,0.00032486,2]
[340029714,1728337832127,-159.30885,0.00033311,2]
[340029716,1728337832136,-560.0,0.00033762,2]
[340029718,1728337832149,-150.335,0.00034215,2]
[340029721,1728337832160,-150.0,0.00034408,14]
[340029723,1728337832170,-150.0,0.00034408,14]
[340029725,1728337832181,-200.0,0.00034408,14]
[340029727,1728337832194,-153.68125924,0.0003616,16]
[340029730,1728337832206,-172.687,0.00036473,45]
[340029732,1728337832217,-169.404406,0.00036787,2]
[340029734,1728337832226,-5468.38685436,0.00037563,2]
[340029736,1728337832237,-500.0,0.00038355,2]
[340029738,1728337832248,-250.0,0.00038355,2]
[340029740,1728337832258,-500.0,0.00038356,120]
[340029742,1728337832269,-500.0,0.00038356,120]
[340029745,1728337832279,-500.0,0.00038356,120]
[340029747,1728337832289,-500.0,0.00038356,120]
[340029749,1728337832299,-500.0,0.00038356,120]
[340029751,1728337832308,-500.0,0.00038356,120]
[340029753,1728337832317,-500.0,0.00038356,120]
[340029755,1728337832326,-6206.78,0.00038356,18]
[340029757,1728337832337,-845.69,0.00038356,120]
[340029759,1728337832346,-644.16104312,0.00038534,120]
[340029761,1728337832358,-155.83895688,0.00038534,120]
[340029763,1728337832367,-800.0,0.00038534,120]
[340029765,1728337832377,-1560.82251115,0.00038534,120]
[340029768,1728337832386,-800.0,0.00038534,120]
[340029770,1728337832395,-800.0,0.00038534,120]
[340029772,1728337832405,-134.66523183,0.0003863,120]
[340029774,1728337832420,-366.7308484,0.0003863,120]
[340029776,1728337832429,-500.0,0.0003863,120]
[340029778,1728337832438,-500.0,0.0003863,120]
[340029780,1728337832448,-500.0,0.0003863,120]
[340029783,1728337832458,-500.0,0.0003863,120]
[340029785,1728337832467,-500.0,0.0003863,120]
[340029787,1728337832477,-500.0,0.0003863,120]
[340029789,1728337832487,-6206.78,0.0003863,18]
[340029791,1728337832496,-845.69,0.0003863,120]
[340029793,1728337832505,-500.0,0.00038904,120]
[340029795,1728337832514,-500.0,0.00038904,120]
[340029797,1728337832524,-588.21384977,0.00038904,120]
[340029799,1728337832533,-500.0,0.00038904,120]
[340029801,1728337832543,-431.25784982,0.00038904,120]
[340029993,1728337838358,-68.74215018,0.00038904,120]
[340029995,1728337838370,-92.86931119,0.00038904,120]
[340029998,1728337838384,-70.07640467,0.00038904,120]
[340030000,1728337838395,-666.18002433,0.00038904,18]
[340030003,1728337838408,-5540.59997567,0.00038904,18]
[340030005,1728337838420,-845.69,0.00038904,120]
[340030007,1728337838431,-500.0,0.00039178,120]
[340030009,1728337838442,-500.0,0.00039178,120]
[340030012,1728337838455,-500.0,0.00039178,120]
[340030014,1728337838465,-500.0,0.00039178,120]
[340030016,1728337838475,-6180.89093633,0.00039178,18]
[340030018,1728337838487,-25.88906367,0.00039178,18]
[340030019,1728337838497,-845.69,0.00039178,120]
[340030021,1728337838508,-153.0,0.0003934,2]
[340030023,1728337838519,-3645.65,0.00039442,10]
[340030025,1728337838531,-3038.04,0.00039442,10]
[340030028,1728337838543,-2531.7,0.00039442,10]